Cogmind - Beta 17 @@@ ROGUE MODE // 2026.06.30 @ 17:35:22 Player: THN-L0C Result: Self-destructed Performance ------------- Evolutions (7) 3500 Regions Visited (19) 3800 Robots Destroyed (245) 1225 Value Destroyed (9619) 9619 Prototype IDs (44) 880 Alien Tech Used (1) 200 Bonus (5578) 5578 TOTAL SCORE: 24802 Bonus ------- High Alert Combat Kills 704 Follower Combat Kills 2227 Network Hubs Disabled 200 Registered with UFD 300 Met Optimus in HQ 500 Met Warlord at Base 500 MAIN.C Attacked Warlord 500 Warlord Defense Kills 94 Built Enhanced Grunts 300 A7 Reached Mainframe 300 Friendly Fire -47 Cogmind --------- Core Integrity 734/1300 Matter 232/300 Energy 36/100 System Corruption 18% Temperature Cool (27) Movement Core (50) Location -3/Research Parts ------- > --- POWER (2) -------- (None) > --- PROPULSION (6) --- (None) > --- UTILITY (10) ----- (None) > --- WEAPON (4) ------- (None) > --- INVENTORY (5) ---- Quantum Capacitor Improved Point Defense System Compact HERF Cannon RU-N14's Throwing Claymores v3 (4) Peak State ------------ > --- POWER ------------ Reinforced Fission Core Antimatter Reactor > --- PROPULSION ------- Centrium Heavy Treads Centrium Heavy Treads Centrium Heavy Treads > --- UTILITY ---------- High-capacity Storage Unit Active Sensor Suite Experimental Terrain Scanner Improved Target Analyzer Improved Target Analyzer Experimental Core Analyzer Advanced Transmission Jammer Experimental System Shield > --- WEAPON ----------- KE Penetrator Enhanced Coil Gun Railgun Advanced KE Penetrator > --- INVENTORY -------- Improved Energy Well Advanced Kinecellerator Quantum Capacitor Graphene Brace Improved Point Defense System Drone Bay Vortex Rail Vortex Rail Vortex Rail Vortex Rail Compact HERF Cannon Cooled Particle Cannon Heavy Shock Bomb Launcher CPS Tube RU-N14's Throwing Claymores v3 RU-N14's Throwing Claymores v3 RU-N14's Throwing Claymores v3 Shock Maul [Rating: 181] Favorites ----------- Power Improved Deuterium Engine Engine Improved Deuterium Engine Power Core Enhanced Fission Core Reactor Quantum Reactor Propulsion Armored Treads Treads Armored Treads Leg Carbon-fiber Leg Wheel Overtuned Huge Scrapsphere Utility Humpback Device Scrap Suit Storage Humpback Processor Improved Target Analyzer Hackware Experimental System Shield Protection Improved Medium Armor Plating Weapon Advanced KE Penetrator Energy Gun Quantum Rifle Energy Cannon Cooled Particle Cannon Ballistic Gun Advanced KE Penetrator Ballistic Cannon Gauss Cannon Launcher Heavy Shock Bomb Launcher Special Weapon Mining Laser Impact Weapon Shock Maul Special Melee Weapon Improved Datajack Build | -11 -10 -10 -10 -9 -8 -7 -7 -7 -7 -5 -5 -5 -5 -5 -4 -4 -4 -3 -3 ------- Run | Yrd Mat Min Exi Min Mat Fac Sto Rec Scr Fac Ext Cet Arc Hub Fac Upp War Pro Res Slots Evolved 14 | . . . . . 4 2 . . . 4 . . . . 2 . . . 2 Power 1 | . . . . . . . . . . 1 . . . . . . . . . Propulsion 4 | . . . . . 1 1 . . . 2 . . . . . . . . . Utility 8 | . . . . . 2 1 . . . 1 . . . . 2 . . . 2 Weapon 1 | . . . . . 1 . . . . . . . . . . . . . . Parts Attached 217 | 9 10 5 2 2 34 6 22 7 12 27 10 5 12 10 27 3 2 3 9 Power 22 | 1 2 1 . . 2 1 4 . 1 3 . . 1 1 2 1 . 1 1 Engine 8 | 1 2 1 . . . 1 2 . 1 . . . . . . . . . . Core 8 | . . . . . 2 . 2 . . 3 . . . . . 1 . . . Reactor 6 | . . . . . . . . . . . . . 1 1 2 . . 1 1 Propulsion 37 | 4 . 2 . . 9 1 5 2 1 4 2 1 2 . 2 . . . 2 Treads 18 | . . . . . 3 1 5 1 . 2 2 1 2 . 1 . . . . Leg 10 | 2 . 2 . . 6 . . . . . . . . . . . . . . Wheel 9 | 2 . . . . . . . 1 1 2 . . . . 1 . . . 2 Hover . | . . . . . . . . . . . . . . . . . . . . Flight . | . . . . . . . . . . . . . . . . . . . . Utility 90 | 2 3 . 1 . 14 1 5 3 5 11 6 3 5 7 17 2 1 1 3 Device 49 | 1 1 . . . 3 . 3 1 4 9 4 1 4 3 9 2 1 1 2 Storage 9 | 1 2 . 1 . . . 1 1 . . . . . . 3 . . . . Processor 12 | . . . . . 4 1 1 . . 1 . . 1 . 3 . . . 1 Hackware 6 | . . . . . . . . . . . 1 . . 4 1 . . . . Protection 14 | . . . . . 7 . . 1 1 1 1 2 . . 1 . . . . Artifact . | . . . . . . . . . . . . . . . . . . . . Weapon 68 | 2 5 2 1 2 9 3 8 2 5 9 2 1 4 2 6 . 1 1 3 Energy Gun 4 | . . . . . . . . 1 . . . . 1 . . . 1 . 1 Energy Cannon 3 | . 1 . . . . . 1 . . . . . . . . . . . 1 Ballistic Gun 37 | 2 3 2 . 1 4 1 4 1 1 7 . 1 2 2 6 . . . . Ballistic Cannon 1 | . . . . . 1 . . . . . . . . . . . . . . Launcher 5 | . 1 . . 1 2 . . . . 1 . . . . . . . . . Special Weapon 11 | . . . 1 . . . . . 4 1 2 . 1 . . . . 1 1 Impact Weapon 5 | . . . . . 1 2 2 . . . . . . . . . . . . Slashing Weapon . | . . . . . . . . . . . . . . . . . . . . Piercing Weapon . | . . . . . . . . . . . . . . . . . . . . Special Melee Weapon 2 | . . . . . 1 . 1 . . . . . . . . . . . . Unidentified Prototypes 17 | . 1 . . . . . 4 . . 2 . 3 . 1 2 1 1 1 1 Corrupted Parts 4 | . . . . . . . . . . . . . 4 . . . . . . System Corruption 30 | . . . . . . . . . . . . . 30 . . . . . . Parts Lost 65 | . . . . . 15 . 8 1 . . 2 . . 3 18 . . 1 17 Power 10 | . . . . . 1 . 1 . . . . . . 2 3 . . 1 2 Propulsion 15 | . . . . . 5 . 2 . . . . . . . 3 . . . 5 Utility 17 | . . . . . 3 . 4 . . . 1 . . . 6 . . . 3 Weapon 23 | . . . . . 6 . 1 1 . . 1 . . 1 6 . . . 7 Highest Loss Streak 11 | . . . . . 8 . 3 1 . . 1 . . 2 6 . . 1 11 To Critical Strikes . | . . . . . . . . . . . . . . . . . . . . Average Backups 23 | 2 8 10 10 12 17 18 18 24 31 31 31 29 28 26 21 17 16 18 18 Power 1 | . . 1 1 1 . . . 1 2 1 1 1 2 1 . 1 . . . Propulsion 2 | . . . . . 1 4 3 5 4 1 2 3 3 4 3 1 . . . Utility 12 | 1 3 4 4 7 11 11 9 13 18 20 18 15 13 12 9 10 8 7 6 Weapon 5 | . 4 4 5 4 3 2 3 3 5 4 6 6 7 6 5 3 5 10 10 Tool/Special . | . . . . . . . . . . . . . . . . . . . . Unused Backups 65 | . 3 2 1 . 6 1 1 1 16 8 3 4 1 3 5 . 2 2 6 Power 10 | . 1 . . . 2 . . 1 1 2 . 2 . . 1 . . . . Propulsion 2 | . . . . . . . . . . 1 . . . . 1 . . . . Utility 38 | . 1 1 1 . 3 1 1 . 12 5 2 2 1 . 3 . 2 1 2 Weapon 14 | . 1 1 . . 1 . . . 3 . 1 . . 3 . . . . 4 Tool/Special 1 | . . . . . . . . . . . . . . . . . . 1 . Average Slot Usage (%) 79 | . 100 100 85 99 92 91 97 87 71 75 76 70 69 69 71 68 74 73 74 Engine 4 | . 14 14 14 14 . 4 5 7 7 3 . . . . . . . . . Core 2 | . . . . . 8 2 1 . . 7 11 11 8 2 . . 5 5 4 Reactor 1 | . . . . . . . . . . . . . 2 8 8 5 5 3 3 Treads 9 | . . . . . 1 30 29 18 6 10 11 6 5 5 5 14 15 15 11 Leg 4 | . 28 28 28 28 22 . . . . . . . . . . . . . . Wheel 6 | . . . . . . . . 5 11 11 11 11 11 11 9 . . . . Device 9 | . 14 14 14 14 4 . 4 7 8 14 10 11 10 7 12 9 10 10 12 Storage 7 | . 14 14 14 14 9 7 7 7 7 5 5 5 5 5 5 5 5 5 4 Processor 6 | . . . . . 12 14 16 15 6 1 . . 3 . 1 10 10 10 12 Hackware 1 | . . . . . . . . . . . 1 . . 7 8 5 5 5 4 Protection 1 | . . . . . 8 7 6 . 1 . 2 4 1 1 3 . . . . Ballistic Gun 15 | . 24 28 1 26 20 15 16 16 12 14 14 15 12 14 11 14 8 19 12 Impact Weapon 1 | . . . . . 2 2 2 . . 1 1 . . 2 2 1 3 . 3 Special Melee Weapon 2 | . . . . . . . . 5 7 . . . . . . . . . . Peak Build Rating 181 | 7 11 16 16 17 37 45 53 57 64 101 105 123 127 129 141 159 164 166 181 Average Rating 78 | 6 10 13 13 16 30 42 48 52 55 92 101 117 121 123 128 146 158 162 168 On Entrance 74 | . 7 11 16 13 17 35 44 49 57 61 99 102 123 121 122 119 159 163 164 Avg Prop Armor Cover (%) 11 | . . . . . . . 4 15 15 11 10 8 9 9 8 9 9 . 14 Naked Turns . | . . . . . . . . . . . . . . . . . . . . Heaviest Build 281 | 11 30 24 49 54 75 79 79 230 235 256 261 258 264 281 273 97 106 109 106 Greatest Support 240 | 26 20 30 30 30 60 80 86 84 56 56 40 40 40 40 160 160 240 240 240 Greatest Overweight (x) 8 | . 1 1 1 1 3 . 1 8 8 6 6 6 6 7 6 . . . 4 Average Overweight (x) 3 | . . . . 1 1 . . 5 5 5 6 6 6 6 4 . . . . Largest Inventory Capacity 35 | 8 15 10 20 20 20 20 20 35 35 35 35 35 35 35 35 20 20 20 20 Average Capacity 27 | 7 8 10 12 20 20 20 20 31 35 35 35 35 35 35 28 20 20 20 20 Most Carried 35 | 5 10 10 14 19 20 20 20 35 35 35 35 35 35 35 35 20 20 20 20 Average Carried 25 | 2 8 9 10 17 19 19 19 26 33 34 34 34 34 32 26 19 18 19 19 Final Capacity 35 | 8 10 10 20 20 20 20 20 35 35 35 35 35 35 35 20 20 20 20 5 Final Carried 35 | 5 10 10 14 19 20 20 16 35 35 35 35 35 35 32 20 18 20 20 5 Scrap Suit Usage (%) 21 | . . . . . . . . . 13 92 92 . 10 91 76 . . . . Parts Cannibalized 26 | . . . . . . . . . 2 4 1 . 2 12 5 . . . . Class Distribution -------------------- 28% | Commander-Mutant 17% | Mutant 12% | Scavenger-Scrapper 11% | Hauler-Scrapper 7% | Scavenger-Skirmisher 6% | Scavenger-Assassin 4% | Gunner 3% | Scavenger-Gunner Dominant Class ---------------- Mutant | -10/Materials Mutant | -10/Mines Mutant | -10/Exiles Mutant | -9/Mines Mutant | -8/Materials Gunner | -7/Factory Gunner | -7/Storage Commander-Mutant | -7/Recycling Commander-Mutant | -7/Scraptown Hauler-Scrapper | -5/Factory Hauler-Scrapper | -5/Extension Hauler-Scrapper | -5/Cetus Scavenger-Scrapper | -5/Archives Scavenger-Scrapper | -5/Hub_04(d) Scavenger-Scrapper | -4/Factory Scavenger-Skirmisher | -4/Upper Caves Scavenger-Assassin | -4/Warlord Scavenger-Skirmisher | -3/Proximity Caves Scavenger-Assassin | -3/Research Resources | -11 -10 -10 -10 -9 -8 -7 -7 -7 -7 -5 -5 -5 -5 -5 -4 -4 -4 -3 -3 ----------- Run | Yrd Mat Min Exi Min Mat Fac Sto Rec Scr Fac Ext Cet Arc Hub Fac Upp War Pro Res Matter Collected 9663 | 513 209 112 105 84 806 240 1034 597 914 670 1052 241 381 429 1493 153 119 177 334 Remotely 872 | . . . . . . . . . . . 290 201 . . 381 . . . . Salvage Created 10165 | 226 240 . . 57 894 119 971 347 . 727 687 118 351 685 3141 272 69 172 1089 Parts 539 | 23 26 . . 8 51 9 44 13 . 21 36 4 29 32 170 11 9 4 49 Haulers Intercepted 6 | . 2 . . . . . . . . 1 . . . 1 2 . . . . Recyclers Shooed 14 | . 1 . . . . . 1 1 . 2 1 . . . 6 . . . 2 Parts Field Recycled 63 | . . . . . . . . . 36 . . . 17 10 . . . . . Retrieved Matter 505 | . . . . . . . . . 195 . . . 200 110 . . . . . Parts Self-Destructed 7 | . . . . . . . . . . . . . . . . 5 . 2 . Prevented 6 | . . . . . . . . . . . . . . . . 6 . . . Parts Restored . | . . . . . . . . . . . . . . . . . . . . Kills | -11 -10 -10 -10 -9 -8 -7 -7 -7 -7 -5 -5 -5 -5 -5 -4 -4 -4 -3 -3 ------- Run | Yrd Mat Min Exi Min Mat Fac Sto Rec Scr Fac Ext Cet Arc Hub Fac Upp War Pro Res Combat Hostiles Destroyed 165 | . 10 . . 5 21 4 25 8 . 10 8 1 . 9 39 5 1 5 14 Melee 2 | . . . . . . . 2 . . . . . . . . . . . . Guns 109 | . 4 . . 2 14 1 20 7 . 10 8 1 . 9 22 1 1 2 7 Cannons 5 | . . . . . 1 . 2 . . . . . . . . . . 1 1 AOE 40 | . 6 . . 3 5 3 . . . . . . . . 14 4 . 2 3 Classes Destroyed 20 | 3 5 . . . 4 . 1 2 . . 1 . . . 1 2 . 1 . Worker 13 | 2 . . . . . . 2 . . . . . . 2 5 . . . 2 Builder 21 | . . . . . 1 . . 1 . . 2 . . 1 13 . . . 3 Tunneler 7 | 5 . . . 1 . . . . . . . . . . 1 . . . . Hauler 6 | . 2 . . . . . . . . 1 . . . 1 2 . . . . Recycler 8 | 1 . . . . 2 . . . . 1 1 . . . 2 . . . 1 Minesweeper 1 | . . . . . . . . . . . . . . . . . . 1 . Operator 13 | . 1 . . . . . 1 . . . . . 9 . 2 . . . . Watcher 10 | . 1 . . . 1 1 . . . 1 1 1 . . 1 . . . 3 Swarmer 49 | . 9 . . 5 7 3 3 1 . . 2 . . . 12 4 . . 3 Grunt 43 | . 1 . . . 6 . 8 1 . 5 2 . . 3 7 . . 5 5 Brawler 1 | . . . . . . . . . . . . . . . . 1 . . . Duelist 2 | . . . . . 1 . 1 . . . . . . . . . . . . Protector 2 | . . . . . . . . 1 . . . . . . . . 1 . . Sentry 28 | . . . . . 6 1 11 3 . 1 1 . . 1 4 . . . . Demolisher 1 | . . . . . . . . 1 . . . . . . . . . . . Hunter 10 | . . . . . 1 . . . . 1 . . . . 6 . . . 2 Programmer 24 | . . . . . . . 2 1 . 3 . . . 5 9 . . . 4 Heavy 1 | . . . . . . . . . . . . . . . 1 . . . . Behemoth 2 | . . . . . . . . . . . 2 . . . . . . . . Cetus Guard 1 | . . . . . . . . . . . . 1 . . . . . . . Thug 1 | . . . . . . . . . . . 1 . . . . . . . . Mutant 1 | . . . . . . . . . . . . . . . . 1 . . . Best Kill Streak 10 | 3 4 . . 3 5 3 10 4 . 3 3 2 3 6 8 4 1 5 9 Combat Bots Only 7 | . 3 . . 3 4 3 7 4 . 3 3 1 . 6 7 4 1 5 5 Max Kills in Single Turn 5 | 1 3 . . 3 2 2 3 2 . 1 1 1 1 1 5 3 1 2 4 Gunslinging 1 | . . . . . . . 1 1 . . . . . . . . . . 1 Exploded 5 | . 3 . . 3 2 2 . . . . . . . . 5 3 . 1 2 Melee 1 | . . . . . . . 1 . . . . . . . . . . . . Uniques/NPCs Destroyed . | . . . . . . . . . . . . . . . . . . . . Combat | -11 -10 -10 -10 -9 -8 -7 -7 -7 -7 -5 -5 -5 -5 -5 -4 -4 -4 -3 -3 -------- Run | Yrd Mat Min Exi Min Mat Fac Sto Rec Scr Fac Ext Cet Arc Hub Fac Upp War Pro Res Hostile Shots Fired 1612 | . 32 . . 18 235 44 437 12 . 73 61 8 3 103 327 13 . 37 209 Missed 471 | . 10 . . 5 65 19 145 3 . 24 16 2 . 29 87 2 . 7 57 Hits 1141 | . 22 . . 13 170 25 292 9 . 49 45 6 3 74 240 11 . 30 152 Melee 5 | . . . . . 1 . 4 . . . . . . . . . . . . Projectile 1136 | . 22 . . 13 169 25 288 9 . 49 45 6 3 74 240 11 . 30 152 AOE 4 | . . . . . . . 1 1 . 1 . . . 1 . . . . . Critical Strikes 60 | . . . . 1 8 . 3 . . 1 2 2 . 7 17 . . 1 18 Actively Blocked 1 | . . . . . . . . . . . . . . . 1 . . . . Part Disruptions 6 | . . . . . . . 2 . . 1 . . . 1 . 1 . . 1 Damage Taken 19283 | . 195 . . 102 2332 249 3161 96 . 710 1087 148 138 1616 5425 69 . 611 3344 Core 2217 | . 21 . . 32 367 23 251 10 . 54 152 . . 86 617 4 . 34 566 Absorbed by Shields 541 | . . . . . 100 . . 86 . 232 73 34 . 16 . . . . . Reduced by Siege Mode 132 | . . . . . . . . . . . . . . . 82 9 . 14 27 Ignored by Resistances 70 | . . . . . . . . . . 4 8 . . 58 . . . . . Regen/Repaired (Parts) 518 | . . . . . . . . . 17 35 8 . 20 120 150 . 168 . . Core Remaining (%) 63 | 100 . . . 78 33 . . . 59 . . . . 70 . . . 43 . Volleys Fired 595 | 37 22 . . 9 55 9 59 11 7 34 45 13 69 32 117 10 3 19 44 Largest 4 | 2 2 . . 2 3 3 3 3 1 3 3 3 3 3 3 3 4 4 4 Hottest 136 | 40 68 . . 46 86 86 96 136 . 97 98 98 100 105 100 98 133 133 133 Shots Fired 1212 | 74 40 . . 13 117 17 141 28 7 88 100 34 83 83 256 17 9 34 71 Gun 1101 | 74 36 . . 12 109 8 115 28 . 87 89 31 81 83 237 15 8 32 56 Cannon 55 | . 1 . . . 3 6 26 . . . . 1 . . 5 . 1 . 12 Launcher 30 | . 3 . . 1 5 3 . . . . . . . . 14 2 . . 2 Special 26 | . . . . . . . . . 7 1 11 2 2 . . . . 2 1 Kinetic 1059 | 74 36 . . 12 112 14 137 25 . 87 89 31 21 83 237 15 8 32 46 Thermal 82 | . 1 . . . . . 4 3 . . . 1 60 . 5 . 1 . 7 Explosive 15 | . 3 . . 1 5 3 . . . . . . . . . . . 2 1 Electromagnetic 23 | . . . . . . . . . . . . . . . 14 2 . . 7 Entropic 10 | . . . . . . . . . . . . . . . . . . . 10 Robot Hit Streak 26 | 10 5 . . 2 12 7 26 8 4 12 14 8 8 11 24 12 14 5 12 Robot Miss Streak 10 | 3 3 . . 2 4 3 10 7 1 4 4 2 3 4 5 . 1 4 2 Penetration Max 2 | . . . . . 1 . . . . . 1 1 . 1 2 1 . . 1 Secondary Targets 18 | . . . . . 3 . 4 1 . 1 2 1 . 2 2 . . . 2 Max Gunslinging Chain 1 | . . . . . 1 . 1 1 . 1 1 1 . 1 1 . . . 1 Shots Hit Robots 896 | 48 21 . . 6 84 11 122 81 6 61 75 21 54 53 173 8 3 13 56 Core Hits 494 | 17 16 . . 7 39 8 128 21 . 29 26 7 25 23 99 8 1 10 30 Critical Kills 28 | . . . . . . . . . . 4 1 . . 2 14 1 1 1 4 Critical Parts Destroyed 43 | . . . . . . . 3 1 . 3 4 . . 6 12 2 . 1 11 Critical Strikes 79 | . . . . . 1 1 5 1 . 7 6 . . 8 27 3 1 3 16 Destroy 60 | . . . . . . . . . . 6 6 . . 8 26 3 1 2 8 Blast 4 | . . . . . 1 1 2 . . . . . . . . . . . . Corrupt 1 | . . . . . . . . . . . . . . . . . . . 1 Smash 13 | . . . . . . . 3 1 . 1 . . . . 1 . . . 7 Sever 1 | . . . . . . . . . . . . . . . . . . 1 . Melee Attacks 158 | . . . . . 17 4 21 59 . 7 . . . 5 17 1 . . 27 Impact 99 | . . . . . 17 4 19 2 . 7 . . . 5 17 1 . . 27 Slashing . | . . . . . . . . . . . . . . . . . . . . Piercing . | . . . . . . . . . . . . . . . . . . . . Sneak Attacks 63 | . . . . . . . 2 54 . 1 . . . 2 3 . . . 1 Combat Hostiles . | . . . . . . . . . . . . . . . . . . . . Follow-up Attacks . | . . . . . . . . . . . . . . . . . . . . Damage Inflicted 28358 | 400 637 5 . 169 2003 439 2862 527 . 1682 2506 536 1561 1995 8199 525 79 1311 2922 Guns 20202 | 400 305 . . 88 1355 112 1955 462 . 1519 2506 536 1561 1767 5626 343 79 248 1340 Cannons 1026 | . 20 . . . 80 109 414 . . . . . . . . . . . 403 Explosions 4978 | . 296 . . 63 501 218 . . . 12 . . . . 2154 182 . 958 594 Melee 1948 | . . . . . 59 . 467 58 . 151 . . . 228 409 . . . 576 Ramming 99 | . 16 5 . 18 8 . 26 7 . . . . . . 10 . . . 9 Kinetic 19080 | 400 305 . . 88 1435 221 2369 404 . 1519 2506 536 296 1767 5626 343 79 248 938 Thermal 2393 | . 20 . . . . . . 58 . . . . 1265 . 863 . . . 187 Explosive 2485 | . 296 . . 63 501 218 . . . 12 . . . . 157 . . 958 280 Electromagnetic 1846 | . . . . . . . . . . . . . . . 1134 182 . . 530 Impact 1948 | . . . . . 59 . 467 58 . 151 . . . 228 409 . . . 576 Slashing 105 | . . . . . . . . . . . . . . . . . . 105 . Piercing . | . . . . . . . . . . . . . . . . . . . . Entropic 402 | . . . . . . . . . . . . . . . . . . . 402 Highest Corruption 18 | . 1 1 1 1 2 . 3 3 . 1 10 7 10 12 10 10 10 . 18 Average Corruption 3 | . 1 1 1 1 1 . 1 2 . 1 3 6 3 6 5 10 10 . 4 Corruption Purged 46 | . . . . . . . . 3 . . 3 7 29 . 4 . . . . Corruption Blocked . | . . . . . . . . . . . . . . . . . . . . Effects 174 | . . 10 5 7 3 . 15 1 . 12 12 7 17 30 21 22 2 . 10 Message Errors 28 | . . 2 2 1 2 . 1 . . 2 2 1 4 7 1 2 . . 1 Matter Fused 44 | . . 2 2 4 1 . 2 . . 5 2 1 6 7 4 3 1 . 4 Heat Flow Errors 28 | . . 4 . 1 . . 3 1 . 2 4 2 2 4 1 4 . . . Energy Discharges 28 | . . . . . . . 3 . . 2 2 1 2 6 5 7 . . . Parts Rejected 2 | . . . . . . . . . . . . . . . 2 . . . . Parts Fused 1 | . . 1 . . . . . . . . . . . . . . . . . Data Loss (minor) 18 | . . . 1 1 . . 2 . . . 1 1 3 2 3 3 . . 1 Data Loss (major) 5 | . . . . . . . 1 . . 1 . . . 1 . . 1 . 1 Misfires 6 | . . . . . . . 1 . . . 1 1 . . 1 1 . . 1 Alerts 7 | . . 1 . . . . . . . . . . . 3 . 2 . . 1 Weapon Failures 7 | . . . . . . . 2 . . . . . . . 4 . . . 1 Overload Shots 8 | . . . . . . . 3 . . . . 1 . . 3 . 1 . . Effects 1 | . . . . . . . 1 . . . . . . . . . . . . Energy Bleed 1 | . . . . . . . 1 . . . . . . . . . . . . Overflow Damage 1301 | . . . . . 25 33 134 29 . 44 . . . 163 353 . . . 520 Projectiles 60 | . . . . . . . 1 . . . . . . . . . . . 59 Explosions 288 | . . . . . 6 33 . . . . . . . . 224 . . . 25 Melee 953 | . . . . . 19 . 133 29 . 44 . . . 163 129 . . . 436 Knockbacks 12 | . . . . . 1 . 4 1 . . . . . 1 1 . . . 4 Impact 7 | . . . . . 1 . . 1 . . . . . 1 1 . . . 3 Kinetic 3 | . . . . . . . 3 . . . . . . . . . . . . Secondary 2 | . . . . . . . 1 . . . . . . . . . . . 1 Self-Inflicted Damage 408 | . 23 . . . . . . . . . . . . . 327 . . . 58 Shots 10 | . 1 . . . . . . . . . . . . . 7 . . . 2 Rammed 8 | . . . . . 1 . 1 2 . . . . . . 2 . . . 2 Targets Rammed 21 | . 3 3 . 3 2 . 3 3 . . . . . . 2 . . . 2 Kicked 9 | . 3 3 . 3 . . . . . . . . . . . . . . . Crushed 4 | . . . . . 1 . 2 1 . . . . . . . . . . . Highest Temperature 358 | . 28 210 . 105 123 113 325 92 . 249 317 347 292 263 358 167 66 86 233 Average Temperature 74 | . 17 85 . 60 25 60 90 26 . 60 108 133 90 68 65 75 34 35 75 Received Heat Transfer 3501 | . . . . . 797 12 1098 13 . 183 236 22 9 234 408 40 . 154 295 Effects 5 | . . . . . . . 3 . . . . . 1 . 1 . . . . Energy Bleed 3 | . . . . . . . 1 . . . . . 1 . 1 . . . . Interference 2 | . . . . . . . 2 . . . . . . . . . . . . Siege Activations 8 | . . . . . . . . . . . . . . . 5 1 . 1 1 Total Turns 151 | . . . . . . . . . . . . . . . 115 11 . 10 15 Longest Duration 51 | . . . . . . . . . . . . . . . 51 11 . 10 15 Martial Activations . | . . . . . . . . . . . . . . . . . . . . Shielding Activations . | . . . . . . . . . . . . . . . . . . . . Robots Disrupted . | . . . . . . . . . . . . . . . . . . . . Combat Hostiles . | . . . . . . . . . . . . . . . . . . . . Robots Corrupted 12 | . . . . . 1 . 1 1 . 1 . . . 1 4 . . . 3 Combat Hostiles 9 | . . . . . 1 . 1 1 . . . . . . 3 . . . 3 Parts Fried 27 | . . . . . 1 . 1 3 . . . . . 1 11 1 . . 9 Impact Corruptions 29 | . . . . . 2 . 4 2 . 2 . . . 4 5 . . . 10 Robots Melted . | . . . . . . . . . . . . . . . . . . . . Combat Hostiles . | . . . . . . . . . . . . . . . . . . . . Parts Melted 2 | . . . . . . . . . . . . . 2 . . . . . . Heat Transferred 2612 | . 37 . . . . . . 125 . . . . 1628 . 600 . . . 222 Parts Sabotaged . | . . . . . . . . . . . . . . . . . . . . Parts Stolen . | . . . . . . . . . . . . . . . . . . . . Parts Stripped . | . . . . . . . . . . . . . . . . . . . . Power Chain Reactions 6 | . . . . . . . . . . . . . . . 6 . . . . Alert | -11 -10 -10 -10 -9 -8 -7 -7 -7 -7 -5 -5 -5 -5 -5 -4 -4 -4 -3 -3 ------- Run | Yrd Mat Min Exi Min Mat Fac Sto Rec Scr Fac Ext Cet Arc Hub Fac Upp War Pro Res Maximum Alert Level 3 | . . . . . 1 . 2 . . 1 1 1 1 2 3 . . . 2 Low Security (%) 73 | 100 100 100 . 100 74 100 80 100 . 60 29 98 94 23 30 . . . 61 Level 1 16 | . . . . . 25 . 18 . . 39 70 1 5 27 25 . . . 6 Level 2 8 | . . . . . . . . . . . . . . 49 29 . . . 32 Level 3 1 | . . . . . . . . . . . . . . . 15 . . . . Level 4 . | . . . . . . . . . . . . . . . . . . . . Level 5 . | . . . . . . . . . . . . . . . . . . . . High Security . | . . . . . . . . . . . . . . . . . . . . Max Security . | . . . . . . . . . . . . . . . . . . . . Peak Influence 810 | 15 180 56 . 87 380 165 401 183 . 336 322 208 241 581 810 . . . 615 Initial 242 | . . 56 . . . 165 . 156 . . 143 117 25 . 242 . . . . Average 141 | 1 61 4 . 12 103 78 128 63 . 146 218 130 48 340 374 . . . 222 Influence Increases 9347 | 40 316 38 . 177 826 137 893 518 . 1053 570 126 331 1032 1978 117 85 115 995 Destroy 0b10 Robot/C 4300 | . 200 20 . 100 440 80 500 260 . 540 340 80 80 340 780 80 80 100 280 Destroy 0b10 Robot/NC 420 | 40 20 . . 5 25 5 15 15 . 15 20 5 45 25 130 . 5 5 45 Destroy Leader 892 | . 46 10 . 20 112 22 170 . . 124 32 . . 114 166 10 . 10 56 Allied During Kill 834 | . . 8 . 16 4 . . 91 . 139 66 8 116 359 . 27 . . . Trap Triggered on 0b10 10 | . . . . . . . . . . 10 . . . . . . . . . Successful Hack 272 | . . . . . 16 . 48 29 . 14 18 . . 36 83 . . . 28 Select Force Hacks 120 | . . . . . . . . 120 . . . . . . . . . . . Disable Machine 825 | . 15 . . . 15 . 60 . . 60 15 15 60 60 495 . . . 30 Anti-Garrison Action 200 | . . . . . . . . . . . . . . . . . . . 200 Destroy Structure 839 | . 20 . . 6 49 30 25 3 . 106 34 18 30 98 324 . . . 96 Lose Combat Pursuer 435 | . 15 . . 30 165 . 75 . . 45 45 . . . . . . . 60 Active Sensor Use 200 | . . . . . . . . . . . . . . . . . . . 200 Influence Decreases 8771 | 40 170 184 . 177 461 502 492 750 169 760 652 274 394 535 1695 519 463 115 419 Entered New Map 1908 | . . 90 . . . 200 . 245 169 . 150 94 38 . 255 289 378 . . Time Decay 5019 | 40 170 94 . 177 316 302 412 420 . 540 342 180 356 415 640 230 21 115 249 Lost Part 614 | . . . . . 140 . 80 4 . . 20 . . 20 180 . . . 170 Lost Ally 630 | . . . . . 5 . . 81 . 220 140 . . 100 20 . 64 . . Purge Threat 600 | . . . . . . . . . . . . . . . 600 . . . . Squads Dispatched 48 | . 3 . . . 1 1 7 . . 9 2 . . 6 12 . . . 7 Investigation 12 | . . . . . 1 . . . . 4 1 . . . 2 . . . 4 Extermination 14 | . . . . . . 1 3 . . 3 . . . 2 4 . . . 1 Reinforcement 18 | . 3 . . . . . 1 . . 2 1 . . 4 5 . . . 2 Assault 1 | . . . . . . . . . . . . . . . 1 . . . . Garrison 3 | . . . . . . . 3 . . . . . . . . . . . . Intercept . | . . . . . . . . . . . . . . . . . . . . Searches Triggered . | . . . . . . . . . . . . . . . . . . . . Construction Impeded 4 | . . . . . . . . . . . 1 . . 1 1 . . . 1 Haulers Reinforced 3 | . . . . . . . . . . 1 . . . 1 1 . . . . Active Scanning Responses 2 | . . . . . . . . . . . . . . . . . . . 2 Cargo Convoy Interrupts . | . . . . . . . . . . . . . . . . . . . . Stealth | -11 -10 -10 -10 -9 -8 -7 -7 -7 -7 -5 -5 -5 -5 -5 -4 -4 -4 -3 -3 --------- Run | Yrd Mat Min Exi Min Mat Fac Sto Rec Scr Fac Ext Cet Arc Hub Fac Upp War Pro Res Distress Signals 22 | . 1 . . . 8 . 1 . . 2 1 1 . 1 2 . 1 . 4 Communications Jammed 115 | . . . . . . . 3 . . 5 . . . 28 53 . . . 26 Distress Signals 111 | . . . . . . . 1 . . 5 . . . 28 52 . . . 25 Times Spotted 339 | . 17 2 . 8 42 5 32 15 . 40 21 5 37 18 52 4 5 5 31 Peak Tracking Total 9 | . 4 2 . 4 9 3 6 5 . 7 5 5 1 5 6 3 2 5 7 Tactical Retreats 24 | . 1 . . 1 10 . 2 . . 4 3 . . . . . . . 3 ECM-based Alert Blocks 1 | . . . . . . . . . . 1 . . . . . . . . . Traps | -11 -10 -10 -10 -9 -8 -7 -7 -7 -7 -5 -5 -5 -5 -5 -4 -4 -4 -3 -3 ------- Run | Yrd Mat Min Exi Min Mat Fac Sto Rec Scr Fac Ext Cet Arc Hub Fac Upp War Pro Res Traps Triggered 16 | . 1 . . . 2 2 2 . . 1 4 . . . 3 . . . 1 Indirectly 2 | . . . . . . . . . . . . . . . 2 . . . . Trap Hack Attempts 21 | . . . . . . . 21 . . . . . . . . . . . . Triggered . | . . . . . . . . . . . . . . . . . . . . Disarmed . | . . . . . . . . . . . . . . . . . . . . Reprogrammed 2 | . . . . . . . 2 . . . . . . . . . . . . Reused 1 | . . . . . . . . . . 1 . . . . . . . . . Traps Extracted . | . . . . . . . . . . . . . . . . . . . . Installed 1 | . . . . . . . . . . 1 . . . . . . . . . Triggered 1 | . . . . . . . . . . 1 . . . . . . . . . Most Traps Carried 4 | . . . . 4 4 . . . 1 1 . . . . . . . . . Machines | -11 -10 -10 -10 -9 -8 -7 -7 -7 -7 -5 -5 -5 -5 -5 -4 -4 -4 -3 -3 ---------- Run | Yrd Mat Min Exi Min Mat Fac Sto Rec Scr Fac Ext Cet Arc Hub Fac Upp War Pro Res Machines Disabled 55 | . 1 . . . 1 . 4 . . 4 1 1 4 4 33 . . . 2 Max in Single Turn 4 | . 1 . . . 1 . 1 . . 1 . 1 1 1 4 . . . 1 Garrison Access 4 | . . . . . . . . . . 1 . . . 1 1 . . . 1 Network Hub 1 | . . . . . . . . . . . . . . 1 . . . . . Machines Repaired . | . . . . . . . . . . . . . . . . . . . . Machines Dismantled . | . . . . . . . . . . . . . . . . . . . . Machines Sabotaged . | . . . . . . . . . . . . . . . . . . . . Overloaded Fab Kills . | . . . . . . . . . . . . . . . . . . . . Hacking | -11 -10 -10 -10 -9 -8 -7 -7 -7 -7 -5 -5 -5 -5 -5 -4 -4 -4 -3 -3 --------- Run | Yrd Mat Min Exi Min Mat Fac Sto Rec Scr Fac Ext Cet Arc Hub Fac Upp War Pro Res Machines Accessed 80 | . 3 1 . . 7 3 7 11 4 8 7 1 . 5 14 . 4 1 4 Terminals 49 | . 3 1 . . 7 2 7 5 . 3 7 1 . 4 6 . . 1 2 Fabricators 3 | . . . . . . 1 . . . . . . . . 2 . . . . Repair Stations 3 | . . . . . . . . . . 1 . . . . 2 . . . . Recycling Units 10 | . . . . . . . . 6 . 3 . . . . . . . . 1 Scanalyzers 2 | . . . . . . . . . . . . . . . 2 . . . . Garrison Access 5 | . . . . . . . . . . 1 . . . 1 2 . . . 1 Total Hacks 232 | . 7 3 . . 19 4 22 21 10 18 12 1 . 25 61 . 18 3 8 Successful 131 | . 2 2 . . 5 . 8 17 10 8 7 . . 15 32 . 18 3 4 Failed 101 | . 5 1 . . 14 4 14 4 . 10 5 1 . 10 29 . . . 4 Catastrophic 16 | . . . . . 1 2 2 1 . 3 . . . 1 3 . . . 3 Database Lockouts . | . . . . . . . . . . . . . . . . . . . . Manual 111 | . 7 3 . . 14 4 9 14 . 9 7 1 . 20 16 . . . 7 Terminals 152 | . 7 3 . . 19 3 22 10 . 8 12 1 . 24 35 . . 3 5 Fabricators 8 | . . . . . . 1 . . . . . . . . 7 . . . . Repair Stations 7 | . . . . . . . . . . 3 . . . . 4 . . . . Recycling Units 16 | . . . . . . . . 11 . 4 . . . . . . . . 1 Scanalyzers 9 | . . . . . . . . . . . . . . . 9 . . . . Garrison Access 12 | . . . . . . . . . . 3 . . . 1 6 . . . 2 Terminal Hacks 68 | . . 1 . . 1 . 5 4 10 1 4 . . 7 13 . 18 3 1 Record 21 | . . . . . . . . 1 9 . . . . . . . 8 3 . Robot Analysis 3 | . . 1 . . . . . 2 . . . . . . . . . . . Prototype ID Bank 11 | . . . . . . . . 1 . . . . . . . . 10 . . Open Door 3 | . . . . . . . . . . . 3 . . . . . . . . Level Access Points 1 | . . . . . . . . . . . . . . 1 . . . . . Branch Access Points 2 | . . . . . . . 1 . . . . . . . 1 . . . . Emergency Access Points 1 | . . . . . . . . . . . . . . 1 . . . . . Terminal Index 2 | . . . . . . . . . . . . . . 1 1 . . . . Alert Level 3 | . . . . . . . . . . . . . . 1 2 . . . . Unreport Threat 4 | . . . . . . . . . . . . . . . 4 . . . . Locate Traps 1 | . . . . . . . 1 . . . . . . . . . . . . Recall Investigation 2 | . . . . . . . 1 . . . 1 . . . . . . . . Recall Extermination 1 | . . . . . . . . . . . . . . . 1 . . . . Recall Reinforcements 3 | . . . . . . . . . . . . . . 2 1 . . . . Recall Assault 1 | . . . . . . . 1 . . . . . . . . . . . . Hauler Manifests 1 | . . . . . . . . . . . . . . . 1 . . . . Zone Layout 7 | . . . . . 1 . 1 . . 1 . . . 1 2 . . . 1 Proto ID Catalog 1 | . . . . . . . . . 1 . . . . . . . . . . Fabricator Hacks 5 | . . . . . . . . . . . . . . . 5 . . . . Network Status 2 | . . . . . . . . . . . . . . . 2 . . . . Load Schematic 2 | . . . . . . . . . . . . . . . 2 . . . . Build 1 | . . . . . . . . . . . . . . . 1 . . . . Repair Station Hacks 3 | . . . . . . . . . . 1 . . . . 2 . . . . Scan Component 2 | . . . . . . . . . . 1 . . . . 1 . . . . Repair 1 | . . . . . . . . . . . . . . . 1 . . . . Recycling Unit Hacks 5 | . . . . . . . . 5 . . . . . . . . . . . Report Inventory 3 | . . . . . . . . 3 . . . . . . . . . . . Retrieve Components 2 | . . . . . . . . 2 . . . . . . . . . . . Scanalyzer 6 | . . . . . . . . . . . . . . . 6 . . . . Insert Component 2 | . . . . . . . . . . . . . . . 2 . . . . Analyze 3 | . . . . . . . . . . . . . . . 3 . . . . Retrieve Study 1 | . . . . . . . . . . . . . . . 1 . . . . Garrison Access Hacks 3 | . . . . . . . . . . 1 . . . 1 1 . . . . Seal Access 3 | . . . . . . . . . . 1 . . . 1 1 . . . . Unauthorized Hacks 41 | . 2 1 . . 4 . 3 8 . 5 3 . . 7 5 . . . 3 Terminals 32 | . 2 1 . . 4 . 3 3 . 3 3 . . 7 5 . . . 1 Assimilate 1 | . . . . . . . . . . . 1 . . . . . . . . Botnet 22 | . 2 1 . . 3 . 3 3 . 3 2 . . 2 2 . . . 1 Disrupt 2 | . . . . . 1 . . . . . . . . 1 . . . . . Skim 7 | . . . . . . . . . . . . . . 4 3 . . . . Fabricators . | . . . . . . . . . . . . . . . . . . . . Repair Stations . | . . . . . . . . . . . . . . . . . . . . Recycling Units 8 | . . . . . . . . 5 . 2 . . . . . . . . 1 Mask 1 | . . . . . . . . 1 . . . . . . . . . . . Tunnel 4 | . . . . . . . . 4 . . . . . . . . . . . Fedlink 3 | . . . . . . . . . . 2 . . . . . . . . 1 Scanalyzers . | . . . . . . . . . . . . . . . . . . . . Garrison Access 1 | . . . . . . . . . . . . . . . . . . . 1 Jam 1 | . . . . . . . . . . . . . . . . . . . 1 Data Cores Recovered 3 | . . . . . 1 . . . . . . . . . 2 . . . . Used . | . . . . . . . . . . . . . . . . . . . . Hacking Detections 54 | . 3 1 . . 7 3 7 7 . 6 5 . . 4 9 . . . 2 Full Trace Events 7 | . . . . . 1 . . 1 . 2 1 . . . 2 . . . . Feedback Events . | . . . . . . . . . . . . . . . . . . . . Feedback Blocked . | . . . . . . . . . . . . . . . . . . . . Robot Schematics Acquired . | . . . . . . . . . . . . . . . . . . . . Robots Built . | . . . . . . . . . . . . . . . . . . . . Authchips . | . . . . . . . . . . . . . . . . . . . . Time . | . . . . . . . . . . . . . . . . . . . . Total Robot Build Rating . | . . . . . . . . . . . . . . . . . . . . Part Schematics Acquired 2 | . . . . . . . . . . . . . . . 2 . . . . Parts Built 1 | . . . . . . . . . . . . . . . 1 . . . . Authchips . | . . . . . . . . . . . . . . . . . . . . Time 93 | . . . . . . . . . . . . . . . 93 . . . . Total Part Build Rating 7 | . . . . . . . . . . . . . . . 7 . . . . Part Studies Acquired 1 | . . . . . . . . . . . . . . . 1 . . . . Parts Repaired 1 | . . . . . . . . . . . . . . . 1 . . . . Time 74 | . . . . . . . . . . . . . . . 74 . . . . Parts Recycled . | . . . . . . . . . . . . . . . . . . . . Recycled Matter . | . . . . . . . . . . . . . . . . . . . . Retrieved Matter . | . . . . . . . . . . . . . . . . . . . . Retrieved Components 9 | . . . . . . . . 9 . . . . . . . . . . . Parts Scanalyzed 2 | . . . . . . . . . . . . . . . 2 . . . . Part Schematics Acquired 2 | . . . . . . . . . . . . . . . 2 . . . . Parts Damaged 1 | . . . . . . . . . . . . . . . 1 . . . . Bothacking | -11 -10 -10 -10 -9 -8 -7 -7 -7 -7 -5 -5 -5 -5 -5 -4 -4 -4 -3 -3 ------------ Run | Yrd Mat Min Exi Min Mat Fac Sto Rec Scr Fac Ext Cet Arc Hub Fac Upp War Pro Res Used RIF Installer . | . . . . . . . . . . . . . . . . . . . . Robots Hacked 9 | . . . . . . . 2 5 . 1 . . 1 . . . . . . Non-combat 9 | . . . . . . . 2 5 . 1 . . 1 . . . . . . Combat . | . . . . . . . . . . . . . . . . . . . . Robot Hacks Applied 11 | . . . . . . . 2 7 . 1 . . 1 . . . . . . parse_system 1 | . . . . . . . 1 . . . . . . . . . . . . no_distress 7 | . . . . . . . . 6 . 1 . . . . . . . . . find_recycling 2 | . . . . . . . 1 1 . . . . . . . . . . . check_alert 1 | . . . . . . . . . . . . . 1 . . . . . . Relay Couplers Released 3 | . . . . . . . . . . . . . . 3 . . . . . Machine Destruction 3 | . . . . . . . . . . . . . . 3 . . . . . Fabnet Peak Effective % . | . . . . . . . . . . . . . . . . . . . . Robots Rewired 31 | . . . . . . . . 18 . . 5 . . . . 3 5 . . Allies Hacked 1 | . . . . . . . . . . . . . . . . . 1 . . Hacks Repelled . | . . . . . . . . . . . . . . . . . . . . Allies | -11 -10 -10 -10 -9 -8 -7 -7 -7 -7 -5 -5 -5 -5 -5 -4 -4 -4 -3 -3 -------- Run | Yrd Mat Min Exi Min Mat Fac Sto Rec Scr Fac Ext Cet Arc Hub Fac Upp War Pro Res Total Allies 52 | . . 6 . . . . . 18 5 . 9 5 . . 1 3 5 . . Largest Group 16 | . . 5 5 3 3 . . 11 16 16 5 6 6 5 1 3 8 . . Highest-Rated Group 626 | . . 85 85 40 40 . . 250 485 490 159 626 626 480 52 90 365 . . Highest-Rated Ally 159 | . . 31 31 16 16 . . 40 47 52 159 159 146 96 52 30 64 . . Initial UFD Resources 57 | . . . . . . . . . . 38 52 52 52 52 54 54 54 57 57 Total Orders 29 | . . . . 2 . . . 2 3 3 . 2 5 5 . 2 1 3 1 STAY 15 | . . . . 1 . . . 1 2 2 . 1 3 3 . 1 1 . . FOLLOW 10 | . . . . 1 . . . 1 1 1 . 1 2 2 . 1 . . . EXPLORE 3 | . . . . . . . . . . . . . . . . . . 2 1 RETURN 1 | . . . . . . . . . . . . . . . . . . 1 . Ally Attacks 383 | . . 6 . . 19 . . 68 . 110 57 14 33 58 . . 18 . . Total Damage 9033 | . . 86 . . 203 . . 1072 . 2289 1294 359 1155 1902 . . 673 . . Kills 57 | . . 1 . . 2 . . 7 . 17 9 3 4 9 . . 5 . . Allies Corrupted 3 | . . . . . . . . . . 1 1 . . . . . 1 . . Allies Melted 4 | . . . . . . . . . . . . . . . . . 4 . . Intel | -11 -10 -10 -10 -9 -8 -7 -7 -7 -7 -5 -5 -5 -5 -5 -4 -4 -4 -3 -3 ------- Run | Yrd Mat Min Exi Min Mat Fac Sto Rec Scr Fac Ext Cet Arc Hub Fac Upp War Pro Res Active Infowar (turns) 8957 | 185 253 . . . 180 . 651 . . 1371 330 . 104 208 1441 494 1479 1448 813 A.S.S. 3705 | . . . . . . . . . . . . . . . . 494 1479 1374 358 IFF 979 | . . . . . . . . . . 598 9 . . . 372 . . . . Terrain 3303 | . . . . . . . . . . . . . . . . 311 1391 1247 354 Seismic 618 | 185 253 . . . 180 . . . . . . . . . . . . . . Cloaking 352 | . . . . . . . . . . 31 321 . . . . . . . . Jamming 4088 | . . . . . . . 651 . . 883 . . 104 208 1441 . . . 801 ECM 87 | . . . . . . . . . . 87 . . . . . . . . . Robot Analysis Total 3 | . . 1 . . . . . 2 . . . . . . . . . . . Derelict Logs Recovered 5 | . . 3 . 2 . . . . . . . . . . . . . . . Drone Launches 4 | . . . . . . . . . . . . . . . . . . 3 1 Drone Recoveries 3 | . . . . . . . . . . . . . . . . . . 2 1 Exploration | -11 -10 -10 -10 -9 -8 -7 -7 -7 -7 -5 -5 -5 -5 -5 -4 -4 -4 -3 -3 ------------- Run | Yrd Mat Min Exi Min Mat Fac Sto Rec Scr Fac Ext Cet Arc Hub Fac Upp War Pro Res Turns Passed 30117 | 283 710 1222 465 1334 1820 792 1138 2212 7528 2143 771 374 1581 1056 2289 499 1479 1473 948 Spaces Moved 15639 | 146 441 741 344 681 718 431 475 1023 4015 1287 433 231 750 658 1191 240 868 585 381 Core 6 | 5 . . . . . . . . . . . . . . . . . . 1 Treads 3373 | . . . . . 43 431 475 298 . . . . . . 95 240 868 585 338 Legs 2990 | 108 441 741 344 681 675 . . . . . . . . . . . . . . Wheels 9270 | 33 . . . . . . . 725 4015 1287 433 231 750 658 1096 . . . 42 Hover . | . . . . . . . . . . . . . . . . . . . . Flight . | . . . . . . . . . . . . . . . . . . . . Fastest Speed 50 | 50 120 120 120 190 186 170 151 157 160 130 130 130 130 130 80 160 160 160 50 Average Speed 160 | 110 120 160 132 190 195 170 165 197 181 136 130 130 130 130 122 160 160 160 157 Slowest Speed 570 | 120 190 190 190 190 330 170 233 570 220 160 130 130 130 140 240 160 160 160 240 Overloaded Moves . | . . . . . . . . . . . . . . . . . . . . Propulsion Burnouts . | . . . . . . . . . . . . . . . . . . . . Robots Hopped . | . . . . . . . . . . . . . . . . . . . . Potential Cave-ins 3 | . . . . . . . . . . . . . . . . . 3 . . Cave-ins Triggered . | . . . . . . . . . . . . . . . . . . . . Exploration Rate (%) 58 | 4 72 98 66 97 50 11 72 98 93 24 60 65 95 38 31 24 87 74 17 Regions Visited 19 Branch Regions 13 Pre-discovered Areas 7 | . . 2 . . . . . 4 . 1 . . . . . . . . . Known Exits Taken 8 | . . . 1 . . 1 1 . . . . . . 1 1 1 1 1 . Unknown Exits Taken 11 | 1 1 1 . 1 1 . . 1 1 1 1 1 1 . . . . . . Scrap Searched 15 | . . 1 . 2 . . . . 10 . . . . . . . . 2 . Spaces Dug 91 | . . . . . 10 4 9 . . 4 . . . 3 13 7 . 11 30 Terrain Destroyed 559 | . 26 . . 6 41 29 14 . . 54 17 10 13 40 176 13 3 67 50 Melee 56 | . . . . . 10 4 7 . . 4 . . . 3 12 1 . . 15 Projectile 270 | . . . . . . . 7 . . 24 17 10 13 37 92 12 3 35 20 AOE 232 | . 26 . . 6 31 25 . . . 26 . . . . 72 . . 32 14 Terrain Rammed . | . . . . . . . . . . . . . . . . . . . . Walls Destroyed . | . . . . . . . . . . . . . . . . . . . . Machines Disabled . | . . . . . . . . . . . . . . . . . . . . Actions | -11 -10 -10 -10 -9 -8 -7 -7 -7 -7 -5 -5 -5 -5 -5 -4 -4 -4 -3 -3 --------- Run | Yrd Mat Min Exi Min Mat Fac Sto Rec Scr Fac Ext Cet Arc Hub Fac Upp War Pro Res Total 19503 | 203 580 776 356 704 1010 472 676 1183 4257 1612 592 291 1280 774 1750 340 951 1093 603 Wait 2180 | 7 86 17 4 3 116 8 25 29 153 187 66 11 426 42 320 50 21 480 129 Move 15620 | 145 440 740 343 680 717 430 474 1022 4014 1286 432 230 749 657 1190 239 867 584 381 Hop . | . . . . . . . . . . . . . . . . . . . . Pick Up 254 | 5 8 3 4 5 29 6 10 36 31 24 12 10 10 9 33 6 9 2 2 Fast Attach 42 | 7 . . . . 9 . 2 1 2 2 1 2 . . 11 1 . 1 3 Attach 89 | . . . . 1 12 2 11 3 6 5 3 3 8 3 16 6 3 . 7 Detach 25 | . . . 1 . 1 . 2 3 4 . . 3 1 . 4 3 3 . . Swap 261 | 2 13 5 2 3 27 7 30 11 8 36 22 5 12 20 35 4 6 5 8 Drop 186 | . 8 8 2 . 25 6 18 5 32 30 11 14 5 6 5 3 6 2 . Fire 595 | 37 22 . . 9 55 9 59 11 7 34 45 13 69 32 117 10 3 19 44 Melee 158 | . . . . . 17 4 21 59 . 7 . . . 5 17 1 . . 27 Ram 1 | . . . . . . . . . . . . . . . . . . . 1 Kick 9 | . 3 3 . 3 . . . . . . . . . . . . . . . Crush 11 | . . . . . 2 . 3 3 . . . . . . 2 . . . 1 Escape Stasis . | . . . . . . . . . . . . . . . . . . . . Rewire 50 | . . . . . . . . . . . . . . . . 17 33 . . Trap 22 | . . . . . . . 21 . . 1 . . . . . . . . . Miscellaneous . | . . . . . . . . . . . . . . . . . . . . Route ------- -11/Scrapyard -10/Materials (discovered 4 exits: [*Mat x2] / *Min x2) -10/Mines (discovered 3 exits: [*Mat x2] / *Exi) -10/Exiles (discovered 2 exits: *Min x2) -9/Mines (discovered 2 exits: *Mat x2) -8/Materials -7/Factory -7/Storage -7/Recycling (discovered 2 exits: *Fac / *Scr) -7/Scraptown (discovered 2 exits: *Fac x2) -5/Factory (discovered 3 exits: *Fac x2 / *Ext) -5/Extension (discovered 2 exits: *Fac / *Cet) -5/Cetus -5/Archives (discovered 3 exits: *Fac / *Hub x2) -5/Hub_04(d) (discovered 4 exits: *Fac x4) -4/Factory (discovered 3 exits: Res / *Upp x2) -4/Upper Caves -4/Warlord -3/Proximity Caves -3/Research History --------- Turn | Location | Event 11 | -11/Scrapyard | Discovered new exit (range 16) 284 | -11/Scrapyard | Entered Materials 304 | -10/Materials | Build established: Mutant 747 | -10/Materials | Discovered new exit (range 5) 750 | -10/Materials | Discovered new exit (range 15) 921 | -10/Materials | Discovered new exit (range 13) 967 | -10/Materials | Discovered new exit (range 13) 994 | -10/Materials | Entered Mines 997 | -10/Mines | Joined a pair of Derelicts in attacking an 0b10 outpost 1361 | -10/Mines | Learned location of Zion (-6) 1522 | -10/Mines | Discovered new exit (range 8) 1536 | -10/Mines | Assisted by bots powering up and referring to "LRC-V3" 1643 | -10/Mines | Received a Mining Laser from a helpful Derelict 2154 | -10/Mines | Build established: Scavenger-Mutant 2181 | -10/Mines | Discovered new exit (range 12) 2187 | -10/Mines | Learned location of Recycling (-7) 2199 | -10/Mines | Deemed a non-threat by the Exiles lab entrance 2200 | -10/Mines | Discovered new exit (range 5) 2216 | -10/Mines | Entered Exiles 2216 | -10/Exiles | Accompanied by 5 allies 2217 | -10/Exiles | Identified exit to Mines 2246 | -10/Exiles | Led the pair of lost Derelicts to a safe place 2247 | -10/Exiles | Met 8R-AWN 2266 | -10/Exiles | Met EX-HEX 2316 | -10/Exiles | Met EX-DEC 2403 | -10/Exiles | Visited The Gauntlet 2544 | -10/Exiles | Build established: Mutant 2681 | -10/Exiles | Entered Mines 2681 | -9/Mines | Accompanied by 3 allies 2717 | -9/Mines | Met a Derelict bent on vengeance 2809 | -9/Mines | Learned Materials terminal intel 3000 | -9/Mines | Found a hidden stash of uninstalled traps 3051 | -9/Mines | Discovered new exit (range 8) 3222 | -9/Mines | Found a Scrap Suit stashed away for nefarious purposes 3226 | -9/Mines | Found Scrap Suit 3430 | -9/Mines | Discovered new exit (range 14) 4015 | -9/Mines | Entered Materials 4015 | -8/Materials | Accompanied by 3 allies 4015 | -8/Materials | Evolved 4 slots: Propulsion x1, Utility x2, Weapon x1 4016 | -8/Materials | Loaded intel: 12 terminal locations 5472 | -8/Materials | Core integrity fell below 50% 5498 | -8/Materials | Lost 8 parts (3n2u3w) 5827 | -8/Materials | Discovered new exit (range 3) 5835 | -8/Materials | Entered Factory 5835 | -7/Factory | Evolved 2 slots: Propulsion x1, Utility x1 5836 | -7/Factory | Identified exit to Storage 6446 | -7/Factory | Build established: Gunner 6627 | -7/Factory | Entered Storage 7474 | -7/Storage | Garrison activated, responded to threat 7660 | -7/Storage | Destroyed 7 combat bots 7734 | -7/Storage | Identified exit to Recycling 7754 | -7/Storage | Lost 3 parts (1n1u1w) 7765 | -7/Storage | Entered Recycling 8509 | -7/Recycling | Build established: Commander-Mutant 8679 | -7/Recycling | Lost 4 allies 8941 | -7/Recycling | Build established: Hauler-Mutant 9065 | -7/Recycling | Discovered new exit (range 9) 9405 | -7/Recycling | Lost 3 allies 9776 | -7/Recycling | Build established: Commander-Mutant 9900 | -7/Recycling | Scanned before Scraplab entrance 9933 | -7/Recycling | Entered Scraplab 9951 | -7/Recycling | Discovered new exit (range 3) 9977 | -7/Recycling | Entered Scraptown 9977 | -7/Scraptown | Accompanied by 11 allies 10307 | -7/Scraptown | Visited Comm Corps 10393 | -7/Scraptown | Visited Symbiants 10871 | -7/Scraptown | Visited Spacefarers 10915 | -7/Scraptown | Visited Cyclists 11005 | -7/Scraptown | Visited Awakened 11069 | -7/Scraptown | Visited CPS Storage 11104 | -7/Scraptown | Visited Bundlers 11205 | -7/Scraptown | Visited UFD Registry 11205 | -7/Scraptown | Registered with UFD as "Metaldisc" 11262 | -7/Scraptown | Visited Science Guys 11355 | -7/Scraptown | Visited Research Penetration Think Tank 11405 | -7/Scraptown | Visited Infowarlord's Domain 11671 | -7/Scraptown | Visited Chapter 10 11740 | -7/Scraptown | Visited Scrapoid Pod Storage 11790 | -7/Scraptown | Visited Abandonware Association 11854 | -7/Scraptown | Learned abandonware demo "HACKBUD.EXE" 11854 | -7/Scraptown | Learned abandonware demo "POISON.EXE" 11902 | -7/Scraptown | Visited Botcube Research 11949 | -7/Scraptown | Visited Science Testing Area 11997 | -7/Scraptown | Visited DA-N13 Charitable Foundation 12019 | -7/Scraptown | Found DCF Scrap (26 items) 12109 | -7/Scraptown | Visited Scrap Suit Storage 12693 | -7/Scraptown | Found Exp. Terrain Scanner 13227 | -7/Scraptown | Found Scrapoid Pod 13749 | -7/Scraptown | Entered Cyclist Reading Room 14118 | -7/Scraptown | Discovered new exit (range 11) 14187 | -7/Scraptown | Scrapoid Pod released 07S05-D (x5) 14659 | -7/Scraptown | Attached CPS modules to 07S02-D 14661 | -7/Scraptown | Attached CPS modules to 07S01-D 14666 | -7/Scraptown | Attached CPS modules to 07S03-D 14668 | -7/Scraptown | Attached CPS modules to 07S03-D 14672 | -7/Scraptown | Attached CPS modules to 07S03-D 14674 | -7/Scraptown | Attached CPS modules to 07S04-D 15238 | -7/Scraptown | Attached CPS modules to 07S05-D 15562 | -7/Scraptown | Found Scrap Suit 16130 | -7/Scraptown | Found Botcube 16454 | -7/Scraptown | Discovered new exit (range 5) 16525 | -7/Scraptown | Found Scrap Suit 17370 | -7/Scraptown | Met Optimus 17370 | -7/Scraptown | Accepted into 0bPrime 17505 | -7/Scraptown | Entered Factory 17505 | -5/Factory | Accompanied by 16 allies 17505 | -5/Factory | Evolved 4 slots: Power x1, Propulsion x2, Utility x1 17951 | -5/Factory | P-70 Sage assimilated allied 07S03-D 18174 | -5/Factory | Loaded intel: 8 recycling unit locations 18271 | -5/Factory | Build established: Commander-Scrapper 18350 | -5/Factory | Lost 9 allies 18600 | -5/Factory | Build established: Hauler-Scrapper 19005 | -5/Factory | Discovered new exit (range 16) 19521 | -5/Factory | Learned location of Protoforge (-2) 19536 | -5/Factory | Discovered new exit (range 5) 19539 | -5/Factory | Discovered new exit (range 16) 19648 | -5/Factory | Entered Extension 19936 | -5/Extension | Rescued a captive Derelict 19982 | -5/Extension | Spotted B-75 Beast 20027 | -5/Extension | Spotted B-75 Beast 20049 | -5/Extension | Destroyed B-75 Beast 20056 | -5/Extension | Lost 3 allies 20076 | -5/Extension | Destroyed B-75 Beast 20150 | -5/Extension | Rescued a captive Derelict 20152 | -5/Extension | Rescued a captive Derelict 20180 | -5/Extension | System corruption reached 10% 20199 | -5/Extension | Rescued A7 20356 | -5/Extension | Discovered new exit (range 16) 20357 | -5/Extension | Discovered new exit (range 15) 20419 | -5/Extension | Entered Cetus 20419 | -5/Cetus | Accompanied by 1 ally (A7) 20424 | -5/Cetus | Acquired a Cetus Manufacturing Module code from A7 20436 | -5/Cetus | Spotted Cetus Guard 20436 | -5/Cetus | Spotted Cetus Guard 20439 | -5/Cetus | Spotted Cetus Guard 20440 | -5/Cetus | Spotted Cetus Guard 20441 | -5/Cetus | Attached CPS modules to Cetus Guard 20443 | -5/Cetus | Attached CPS modules to Cetus Guard 20450 | -5/Cetus | Allies destroyed Cetus Guard 20463 | -5/Cetus | Allies destroyed Cetus Guard 20463 | -5/Cetus | Destroyed Cetus Guard 20473 | -5/Cetus | Allies destroyed Cetus Guard 20584 | -5/Cetus | Started Cetus Manufacturing Module 20609 | -5/Cetus | Manufactured an Enhanced Grunt 20615 | -5/Cetus | Discovered new exit (range 15) 20634 | -5/Cetus | Manufactured an Enhanced Grunt 20659 | -5/Cetus | Manufactured an Enhanced Grunt 20684 | -5/Cetus | Manufactured an Enhanced Grunt 20691 | -5/Cetus | Escorted A7 to Cetus Mainframe 20709 | -5/Cetus | Manufactured an Enhanced Grunt 20793 | -5/Cetus | Entered Archives 20793 | -5/Archives | Accompanied by 6 allies (A7) 20798 | -5/Archives | Received a hacking code to weaken MAIN.C 20853 | -5/Archives | Discovered new exit (range 14) 20867 | -5/Archives | Discovered new exit (range 15) 20896 | -5/Archives | Discovered new exit (range 15) 21054 | -5/Archives | Unable to access archive contents 21054 | -5/Archives | Unable to access archive contents 21585 | -5/Archives | Build established: Scavenger-Scrapper 22374 | -5/Archives | Entered Hub_04(d) 22374 | -5/Hub_04(d) | Accompanied by 5 allies 22417 | -5/Hub_04(d) | Build established: Hauler-Scrapper 22430 | -5/Hub_04(d) | Identified exit to Factory 22744 | -5/Hub_04(d) | Build established: Scavenger-Scrapper 23353 | -5/Hub_04(d) | Network Hub disabled 23430 | -5/Hub_04(d) | Entered Factory 23430 | -4/Factory | Evolved 2 slots: Utility x2 23631 | -4/Factory | Found Quantum Capacitor 24306 | -4/Factory | Discovered new exit (range 20) 24306 | -4/Factory | Watched by a mysterious "MATRIX" hacker 24416 | -4/Factory | Repaired Quantum Reactor 24824 | -4/Factory | Botcube activated 24834 | -4/Factory | Botcube completed mutation into treaded form (unarmed). 24958 | -4/Factory | Identified exit to Upper Caves 25113 | -4/Factory | Lost 4 parts (2u2w) 25232 | -4/Factory | Fabricated Adv. KE Penetrator? 25320 | -4/Factory | Destroyed 7 combat bots 25329 | -4/Factory | Lost 6 parts (2p1n1u2w) 25519 | -4/Factory | System corruption reached 10% 25603 | -4/Factory | Destroyed 7 combat bots 25609 | -4/Factory | Lost 3 parts (2u1w) 25625 | -4/Factory | Core integrity fell below 50% 25661 | -4/Factory | Found Active Sensor Suite 25680 | -4/Factory | First assault squad dispatched 25691 | -4/Factory | Found Prototype Hackware 25691 | -4/Factory | Identified Exp. System Shield 25719 | -4/Factory | Entered Upper Caves 25750 | -4/Upper Caves | Attacked by a delusional Derelict stockpiling Unaware 26128 | -4/Upper Caves | Found Alien Artifact 26128 | -4/Upper Caves | Identified Core Expander 26128 | -4/Upper Caves | Installed Core Expander, added new Weapon slot 26209 | -4/Upper Caves | A Derelict revealed a hidden shortcut to "reach the base" 26213 | -4/Upper Caves | Identified exit to Warlord 26218 | -4/Upper Caves | Entered Warlord 26218 | -4/Warlord | Accompanied by 3 allies 26275 | -4/Warlord | System corruption cleaned by Quarantine Array 26420 | -4/Warlord | Build established: Scavenger-Assassin 26715 | -4/Warlord | Rebuked by Warlord 26740 | -4/Warlord | Warlord's base attacked by MAIN.C 27026 | -4/Warlord | Found Prototype Energy Gun 27026 | -4/Warlord | Identified Vortex Rail 27030 | -4/Warlord | Found Vortex Rail 27036 | -4/Warlord | Found Vortex Rail 27039 | -4/Warlord | Found Vortex Rail 27090 | -4/Warlord | Warlord forces counterattacked 27163 | -4/Warlord | Found Prototype Special Weapon 27165 | -4/Warlord | Found Prototype Special Weapon 27169 | -4/Warlord | Found Prototype Special Weapon 27415 | -4/Warlord | Warlord base infiltrated, sounded retreat 27596 | -4/Warlord | Build established: Scavenger-Skirmisher 27642 | -4/Warlord | Spotted Executioner 27664 | -4/Warlord | Found Prototype Processor 27668 | -4/Warlord | Found Corrupted Prototype Device 27670 | -4/Warlord | Discovered new exit (range 14) 27687 | -4/Warlord | Lost 3 allies 27688 | -4/Warlord | Identified exit to Proximity Caves 27697 | -4/Warlord | Entered Proximity Caves 27702 | -3/Proximity Caves | Identified RU-N14's Throwing Claymores v3 (x3) 28913 | -3/Proximity Caves | Discovered new exit (range 15) 29169 | -3/Proximity Caves | Identified exit to Research 29170 | -3/Proximity Caves | Entered Research 29170 | -3/Research | Evolved 2 slots: Utility x2 29183 | -3/Research | Identified Exp. Core Analyzer 29853 | -3/Research | Build established: Scavenger-Assassin 29899 | -3/Research | Loaded intel: 5 recycling unit locations 29957 | -3/Research | System corruption reached 10% 30021 | -3/Research | Lost 6 parts (2n1u3w) 30077 | -3/Research | Identified Adv. Kinecellerator 30118 | -3/Research | Released all parts (7) 30118 | -3/Research | Self-destructed Last Messages --------------- 30110_ U-05 Engineer lays Concrete. 30111_ Rnf. Fission Core destroyed. 30112_ K-01 Serf collects debris. 30112_ R-10 Processor sends out distress signal. 30112_ U-05 Engineer builds a Wall. 30114_ Destroyed Gamma Rifle. 30115_ Active Sensor Suite destroyed. 30117_ K-01 Serf collects debris. 30118_ Released Adv. Component Analysis Suite. 30118_ Released Imp. Target Analyzer. 30118_ Released Hcp. Storage Unit. 30118_ Released Imp. Target Analyzer. 30118_ Released Exp. System Shield. 30118_ Released Exp. Core Analyzer. 30118_ Released Cld. Particle Cannon. 30118_ Slug penetrates Wall. 30118_ Penetrated by Slug. 30118_ Critical hit (Burn: +37). 30118_ Penetrated by Slug. 30118_ Slug penetrates Wall. Map ----- +----------------------------------------------------+ | ????????????????????????????????????????????????? | | ????????????????????????????????????????????????? | | ????????????????????????????????????????????????? | | ????????????????????????????????????????????????? | | ????????????????????????????????????????????????? | | ????????????????????????????????????????????????? | | ????????????????????????????????????????????????? | | ?????????? ???????????????????????????????????? | | ????????# ##############?????????????????????? | | ????????# # #?????????????????????? | | ????????# # #?????????????????????? | | ????????# # #?????????????????????? | | ???###### # """" #?????????????????????? | | ???? # """" +?????????????????????? | | ????? # """" ##????????????????????? | | ?????? + """" ;#????????????????????? | | ??????? # ;#????????????????????? | | ######### # ;#????????????????????? | | ? # # ;#????????????????????? | | ? =# # ;#????????????????????? | | ? """"%=# # ;#????????????????????? | | ? """"!*# #######+#####=#????????????????????? | | """"|%# % ##????# # [|!%#????????????????????? | | """"= + %! #?????# # *|*!#????????????????????? | | !*#% ## # #=!s%!#????????????????????? | | ![#!% T# ! !# #!|[@=#????????????????????? | | #*| # #%|%]%g##????????????????????? | | ######### ####+ #!A p!=[?????????????????????? | | ????????# ! %k!![?????????????????????? | | ?????#### ##;; ????????????????????? | | ######"## # # ## ????????????????????? | | # ####+##u " ???????????????????? | | # # " ???????????????????? | | ""# # # " ??????????????????? | | Y"# # # " h ??????????????????? | | ""# # #"? ?????????????????? | | # # #"? ?????????????????? | | + + ^ #"? ????????????????? | | # # ^ #?? h ????????????????? | | # # #??? ??????????????????? | | ######### #####+#####??? ????????????????????? | | ?????????????????????????????????? | | ???????????????????????????????? | | ?????????????????????????????? | | #???????????????????????????? | | #####################???????????????????????????? | | ## ! #???????????????????????????? | | # #???????????????????????????? | | # """ """ """ #???????????????????????????? | | # """ """ """ #???????????????????????????? | +----------------------------------------------------+ Best States ------------- Heat Dissipation 71 Coolant Potential 50 Energy Generation 45 Energy Capacity 950 Matter Stores 300 Matter Capacity 300 Sight Range 16 Robot Scan Range 20 Terrain Scan Range 30 Terrain Scan Density 10 ECM Strength 2 Jamming Range 16 Cloak Strength 2 Additional Mass Support 6 Armor Coverage 900 Resistance: KI 25 Resistance: TH 25 Point Defense Rating 160 Evasion (%) 55 Targeting Accuracy 8 Target Analysis 9 Core Analysis 8 Armor Integrity Analysis 30 Recoil Reduction 6 Kinecelleration 30 Salvage Targeting 4 Offensive Hacking 12 Defensive Hacking 16 Item Schematics ----------------- Adv. KE Penetrator | -4/Factory | Scanalyzed Centrium Heavy Treads | -4/Factory | Scanalyzed Robot Schematics ------------------ None Fabricated ------------ Adv. KE Penetrator | x1 | -4/Factory Repaired ---------- Quantum Reactor | 11% | -4/Factory Studied --------- KE Penetrator | -4/Factory | Hacked Alien Tech Used ----------------- Core Expander Achievements -------------- Bob, First Of His Name Construction Begets Destruction Ew, Corruption Frankenstein Junior Dev Link The Feds Challenges ------------ None Game ------ Seed EfficiencyThermalBrace Manual? 0 Play Time 04:53:08 Cumulative 407.1 hours Start 2026.06.29 @ 17:34:34 End 2026.06.30 @ 17:35:22 Sessions 7 Manual Loads 0 Difficulty Rogue Special Mode None Game No. 302 Rogue 302 Adventurer 0 Explorer 0 Win Type - Total 9 Types 4/0/3/2/0/0/0/0/0/0 Lore% 76 Gallery% 73 Achievement% 50 Wizard Run 0 Options --------- Layout 2 ASCII 0 Keyboard 1 Movement Vi Keybinds 0 Fullscreen 2 Font 32/SmallcapsGlow Map View 77x44 Zoom Use 0% Tactical HUD 1 Map Filters NONE Filters NONE Steam 1 RUN: 301f69d6-0007-4f62-b8cb-d33e31b4b2a8